bitfinex/quotes_SOLUSD_20240621
["timestamp","ask_amount","ask_price","bid_price","bid_amount"]
[1719009685700,22.3566,134.68,134.63,5.9421]
[1719009686001,16.4164,134.68,134.65,5.9411]
[1719009688010,0.8648173,134.69,134.66,5.9406]
[1719009688990,0.8648173,134.69,134.65,5.9411]
[1719009691007,6.8046173,134.69,134.64,5.9416]
[1719009691394,0.8648173,134.69,134.65,5.9411]
[1719009691799,6.8044173,134.69,134.65,5.9411]
[1719009692301,0.8648173,134.69,134.65,5.9411]
[1719009694318,0.8648173,134.69,134.66,5.9408]
[1719009694699,0.8648173,134.69,134.63,22.39]
[1719009694995,0.8648173,134.69,134.68,5.94]
[1719009695711,0.8648173,134.69,134.68,20.79]
[1719009696291,0.8648173,134.69,134.63,14.8524]
[1719009696292,6.3701,134.68,134.63,14.8524]
[1719009696492,6.3701,134.68,134.6,14.8587]
[1719009696723,12.3103,134.68,134.62,5.9425]
[1719009696895,5.9405,134.67,134.61,5.9426]
[1719009697097,12.3101,134.68,134.62,5.9426]
[1719009697295,5.9405,134.67,134.61,5.9429]
[1719009697508,5.9405,134.67,134.56,29.7253]
[1719009697509,6.3701,134.68,134.6,5.9434]
[1719009697691,5.9414,134.65,134.6,5.9434]
[1719009697894,14.8512,134.67,134.56,14.8623]
[1719009698098,5.9426,134.62,134.57,5.9447]
[1719009698710,5.9426,134.62,134.55,6.3138]
[1719009698711,16.4164,134.63,134.59,5.9438]
[1719009698906,5.9409,134.66,134.6,5.9434]
[1719009699112,5.9409,134.66,134.61,5.9429]
[1719009700896,16.4164,134.67,134.61,5.9429]
[1719009702110,5.941,134.66,134.61,5.9429]
[1719009702818,5.942,134.64,134.59,5.9437]
[1719009703023,5.942,134.64,134.58,5.9442]
[1719009703319,16.7564,134.67,134.55,21.177]
[1719009703320,14.8522,134.66,134.57,5.9447]
[1719009703521,0.34,134.65,134.58,5.9443]
[1719009703703,5.9423,134.63,134.58,5.9443]
[1719009704203,15.2076,134.73,134.68,5.94]
[1719009704532,15.2076,134.73,134.67,5.9403]
[1719009704533,5.9383,134.72,134.67,5.9403]
[1719009705402,5.9387,134.71,134.63,14.8544]
[1719009705597,5.9387,134.71,134.66,5.9408]
[1719009705799,5.9394,134.7,134.64,5.9415]
[1719009705999,21.5346,134.68,134.61,14.8575]
[1719009706223,5.941,134.66,134.61,5.9427]
[1719009706720,21.5346,134.68,134.58,15.2076]
[1719009706928,0.17,134.67,134.58,15.2076]
[1719009707230,0.34,134.67,134.57,14.8611]
[1719009707605,5.941,134.66,134.61,5.9427]
[1719009709103,0.34,134.67,134.57,37.2511]
[1719009709104,6.2806,134.67,134.62,5.9426]
[1719009710018,15.1912,134.67,134.55,37.4253]
[1719009710318,5.9429,134.62,134.57,5.9446]
[1719009710534,5.9421,134.64,134.58,5.9442]
[1719009710836,0.34,134.63,134.58,5.9442]
[1719009711016,5.9421,134.64,134.59,5.9438]
[1719009711723,5.9422,134.63,134.58,5.9442]
[1719009716130,5.9427,134.62,134.57,5.9446]
[1719009717343,0.17,134.63,134.53,14.8664]
[1719009717518,5.9437,134.6,134.55,5.9455]
[1719009717835,5.9432,134.61,134.56,5.945]
[1719009718039,5.9435,134.6,134.56,5.945]
[1719009718227,5.9453,134.56,134.52,5.9467]
[1719009718435,14.8591,134.6,134.5,22.39]
[1719009718636,5.9445,134.58,134.53,5.9462]
[1719009719348,5.9453,134.56,134.51,5.9471]
[1719009719567,5.9447,134.58,134.53,5.9465]
[1719009719721,5.9449,134.57,134.52,5.9469]
[1719009719920,5.9446,134.58,134.5,14.8698]
[1719009720219,5.9444,134.58,134.53,5.9464]
[1719009720428,5.9449,134.57,134.5,14.8698]
[1719009721027,5.9449,134.57,134.52,5.9468]
[1719009721727,5.9445,134.58,134.53,5.9465]
[1719009722242,15.2076,134.59,134.56,5.945]
[1719009722738,15.2076,134.59,134.55,5.9456]
[1719009722938,21.1518,134.59,134.54,5.9461]
[1719009723114,15.2076,134.59,134.51,14.8679]
[1719009723326,15.2076,134.59,134.55,5.9454]
[1719009723529,15.2076,134.59,134.49,22.39]
[1719009723726,15.2076,134.59,134.48,35.8469]
[1719009723727,15.2076,134.59,134.56,5.9452]
[1719009724346,15.2076,134.59,134.5,14.8695]
[1719009724548,6.2846,134.58,134.53,5.9463]
[1719009724843,15.2076,134.59,134.55,5.9453]
[1719009725531,21.1517,134.59,134.54,5.9458]
[1719009725735,5.9444,134.58,134.53,5.9464]
[1719009727226,15.2076,134.59,134.48,28.494]
[1719009727428,6.2799,134.58,134.49,0.34]
[1719009727643,12.2245,134.58,134.53,5.9465]
[1719009728836,15.2076,134.59,134.49,22.39]
[1719009729038,15.9067,134.63,134.58,14.861]
[1719009729353,6.1099,134.65,134.61,5.9427]
[1719009729587,5.942,134.64,134.59,5.9436]
[1719009730337,12.0512,134.65,134.6,5.9432]
[1719009730536,5.9417,134.64,134.59,5.9439]
[1719009730937,6.1099,134.65,134.58,5.9443]
[1719009731641,5.9452,134.57,134.52,5.9468]
[1719009731839,61.2467,134.64,134.51,15.645]
[1719009732053,14.8566,134.63,134.51,15.645]
[1719009732362,6.1128,134.62,134.53,14.8664]
[1719009732534,5.9423,134.63,134.55,14.8641]
[1719009732735,22.1887,134.64,134.58,5.9441]
[1719009732948,22.0187,134.64,134.58,5.9441]
[1719009733148,5.9422,134.63,134.58,5.9441]
[1719009734352,22.0186,134.64,134.58,5.9441]
[1719009734963,5.9423,134.63,134.58,5.9441]
[1719009735140,5.9427,134.62,134.57,5.9447]
[1719009735340,16.0767,134.64,134.55,14.8641]
[1719009735562,5.9424,134.63,134.58,5.9443]
[1719009737560,22.0186,134.64,134.59,5.9439]
[1719009739274,5.9422,134.63,134.58,5.9442]
[1719009739939,30.9312,134.64,134.53,14.8665]
[1719009740139,5.9438,134.6,134.55,5.9456]
[1719009740345,0.17,134.63,134.53,14.8665]
[1719009740668,5.9431,134.61,134.56,5.945]
[1719009740957,0.17,134.63,134.51,15.645]
[1719009740958,14.8568,134.62,134.51,15.645]
[1719009741165,5.9435,134.6,134.55,5.9454]
[1719009741950,6.1132,134.61,134.56,5.9452]
[1719009742155,5.9435,134.6,134.55,5.9456]
[1719009745464,6.1132,134.61,134.56,5.9452]
[1719009746188,5.9435,134.6,134.55,5.9455]
[1719009746350,5.9431,134.61,134.56,5.9451]
[1719009751768,5.9425,134.63,134.58,5.9441]
[1719009751962,5.9424,134.63,134.56,14.863]
[1719009752160,5.9424,134.63,134.58,5.9441]
[1719009753153,5.9429,134.62,134.56,5.9448]
[1719009753353,5.9429,134.62,134.53,22.35]
[1719009753558,5.9424,134.63,134.58,5.9444]
[1719009753853,15.9067,134.64,134.55,14.8634]
[1719009754079,5.9426,134.62,134.55,14.8634]
[1719009754377,5.9426,134.62,134.57,5.9446]
[1719009755188,21.8486,134.64,134.59,5.9437]
[1719009756263,5.9422,134.63,134.59,5.9437]
[1719009756499,5.9422,134.63,134.58,5.9442]
[1719009758260,5.9428,134.62,134.57,5.9446]
[1719009758662,5.9428,134.62,134.58,5.9443]
[1719009758977,5.9424,134.63,134.58,5.9443]
[1719009759166,5.9424,134.63,134.59,5.9439]
[1719009759568,15.9067,134.64,134.61,5.943]
[1719009759757,15.9067,134.64,134.58,14.86]
[1719009759959,15.9067,134.64,134.61,5.9429]
[1719009760656,15.4992,134.68,134.62,5.9424]
[1719009760994,15.4992,134.68,134.6,14.8583]
[1719009760995,5.9409,134.66,134.61,5.9426]
[1719009762057,5.9409,134.66,134.62,5.9425]
[1719009762578,5.9406,134.67,134.62,5.9425]
[1719009763575,5.9421,134.64,134.59,5.9438]
[1719009763974,15.0232,134.66,134.58,5.9442]
[1719009764173,5.9419,134.64,134.59,5.9439]
[1719009764580,5.9415,134.65,134.6,5.9433]
[1719009764781,5.9415,134.65,134.56,43.9708]
[1719009765491,5.9419,134.64,134.59,5.9437]
[1719009766271,5.9414,134.65,134.6,5.9434]
[1719009766480,0.17,134.66,134.57,15.0313]
[1719009766788,5.9414,134.65,134.6,5.9433]
[1719009767887,5.9417,134.64,134.6,5.9433]
[1719009768074,5.9417,134.64,134.59,5.9437]
[1719009768594,0.34,134.67,134.57,37.3813]
[1719009768776,5.9413,134.65,134.61,5.9429]
[1719009769086,5.942,134.64,134.57,14.8613]
[1719009769289,5.9415,134.65,134.6,5.9435]
[1719009769591,5.9415,134.65,134.61,5.943]
[1719009769964,5.9418,134.64,134.6,5.9433]
[1719009770180,5.9418,134.64,134.59,5.9437]
[1719009770885,5.9414,134.65,134.6,5.9435]
[1719009772365,5.9418,134.64,134.59,5.9439]
[1719009772871,5.9418,134.64,134.6,5.9434]
[1719009774876,5.9415,134.65,134.6,5.9434]
[1719009775589,5.9415,134.65,134.61,5.943]
[1719009776090,5.941,134.66,134.61,5.943]
[1719009776686,5.9425,134.63,134.54,44.5946]
[1719009776885,5.9425,134.63,134.58,5.9441]
[1719009777098,6.2829,134.62,134.57,5.9447]
[1719009777290,21.3256,134.65,134.54,14.8645]
[1719009777291,5.9424,134.63,134.58,5.9441]
[1719009777470,5.9424,134.63,134.55,14.8635]
[1719009778465,5.9424,134.63,134.58,5.9443]
[1719009780290,5.9424,134.63,134.55,14.8635]
[1719009780599,5.9423,134.63,134.58,5.9441]
[1719009783872,5.9427,134.62,134.58,5.9441]
[1719009784073,5.9433,134.61,134.56,5.945]
[1719009784479,15.6834,134.6,134.53,14.8657]
[1719009784995,21.6271,134.6,134.55,5.9455]
[1719009785374,21.6271,134.6,134.56,5.9452]
[1719009787685,15.6834,134.6,134.56,5.9452]
[1719009787999,15.6834,134.6,134.53,14.8657]
[1719009788304,15.6834,134.6,134.57,5.9448]
[1719009789006,15.6834,134.6,134.56,5.9451]
[1719009789175,15.6834,134.6,134.58,5.9444]
[1719009789703,15.6834,134.6,134.59,5.9439]
[1719009789899,15.6834,134.63,134.58,14.861]
[1719009790117,15.6834,134.67,134.63,5.9419]
[1719009790288,15.6834,134.67,134.62,5.9422]
[1719009790811,5.9416,134.65,134.59,5.9435]
[1719009791110,5.9415,134.65,134.6,5.9433]
[1719009792283,5.9418,134.64,134.6,5.9433]
[1719009793717,5.9415,134.65,134.6,5.9433]
[1719009794813,21.624,134.67,134.62,5.9425]
[1719009795321,21.624,134.67,134.63,5.9421]
[1719009795619,21.624,134.67,134.62,5.9425]
[1719009798721,5.9408,134.66,134.61,5.9429]
[1719009804125,5.9408,134.66,134.62,5.9426]
[1719009805828,21.624,134.67,134.62,5.9426]
[1719009810430,5.9409,134.66,134.62,5.9426]
[1719009812336,5.9409,134.66,134.61,5.9428]
[1719009815507,15.6834,134.67,134.62,5.9425]
[1719009815712,15.6834,134.67,134.63,5.9419]
[1719009816131,21.6238,134.67,134.63,5.9419]
[1719009817638,15.6834,134.67,134.63,5.9419]
[1719009818136,21.6239,134.67,134.63,5.9419]
[1719009819415,15.6834,134.67,134.61,5.9428]
[1719009819615,5.9409,134.66,134.62,5.9426]
[1719009821441,21.6239,134.67,134.62,5.9426]
[1719009822818,21.6239,134.67,134.63,5.9421]
[1719009824027,21.6239,134.67,134.62,5.9424]
[1719009824432,15.6834,134.67,134.64,5.9414]
[1719009824746,15.6834,134.67,134.65,5.9412]
[1719009824945,13.1828173,134.69,134.65,5.9412]
[1719009825140,0.8648173,134.69,134.66,5.9408]
[1719009826325,0.8648173,134.69,134.68,5.94]
[1719009826641,0.8648173,134.69,134.67,5.9402]
[1719009826844,15.6109,134.68,134.63,5.9421]
[1719009827160,15.6109,134.68,134.61,14.8567]
[1719009827636,15.6109,134.68,134.65,5.941]
[1719009828219,15.6109,134.68,134.64,5.9415]
[1719009828918,21.5509,134.68,134.63,5.942]
[1719009829121,15.6109,134.68,134.64,5.9416]
[1719009829323,15.6109,134.68,134.65,5.9411]
[1719009829538,0.8648173,134.69,134.62,22.35]
[1719009829839,0.8648173,134.69,134.68,5.94]
[1719009830054,0.8648173,134.69,134.67,5.9402]
[1719009831260,0.8648173,134.69,134.68,5.94]
[1719009833831,0.8648173,134.69,134.68,6.11]
[1719009834058,0.8648173,134.69,134.68,6.28]
[1719009834849,0.8648173,134.69,134.68,28.63]
[1719009840668,0.8648173,134.69,134.68,6.28]
[1719009842962,0.8648173,134.69,134.68,5.94]
[1719009846134,0.8648173,134.69,134.68,6.11]
[1719009846334,0.8648173,134.69,134.68,93.4]
[1719009846335,1.73e-05,134.69,134.68,93.4]
[1719009846556,1.73e-05,134.69,134.68,48.46]
[1719009848042,1.73e-05,134.69,134.68,48.63]
[1719009848243,1.73e-05,134.69,134.68,28.63]
[1719009848841,1.73e-05,134.69,134.68,48.63]
[1719009850269,1.73e-05,134.69,134.68,48.29]
[1719009850481,1.73e-05,134.69,134.68,5.94]
[1719009852268,1.73e-05,134.69,134.68,6.11]
[1719009852481,1.73e-05,134.69,134.68,28.63]
[1719009855565,1.73e-05,134.69,134.68,48.63]
[1719009859358,1.73e-05,134.69,134.68,5.94]
[1719009870458,1.73e-05,134.69,134.67,5.9403]
[1719009870758,16.2145,134.68,134.67,5.9404]
[1719009874088,16.2145,134.68,134.67,5.792399]
[1719009876106,1.73e-05,134.69,134.68,5.94]
[1719009876383,1.73e-05,134.69,134.68,20.79]
[1719009883180,1.73e-05,134.69,134.68,63.48]
[1719009885505,1.73e-05,134.69,134.68,130.3081]
[1719009889799,1.73e-05,134.69,134.68,63.14]
[1719009891185,1.73e-05,134.69,134.68,107.79]
[1719009891592,1.73e-05,134.69,134.68,108.13]
[1719009894482,1.73e-05,134.69,134.68,20.79]
[1719009894679,1.73e-05,134.69,134.68,43.14]
[1719009895803,1.73e-05,134.69,134.67,5.9403]
[1719009895995,1.73e-05,134.69,134.63,29.7104]
[1719009896384,1.73e-05,134.69,134.68,5.94]
[1719009899301,1.73e-05,134.69,134.68,28.46]
[1719009899507,1.73e-05,134.69,134.68,28.63]
[1719009900290,1.73e-05,134.69,134.68,48.63]
[1719009901896,1.73e-05,134.69,134.68,93.28]
[1719009903095,1.73e-05,134.69,134.68,99.29088357]
[1719009903314,1.73e-05,134.69,134.68,121.40228357]
[1719009904998,1.73e-05,134.69,134.68,114.81688357]
[1719009906115,1.73e-05,134.69,134.68,54.30088357]
[1719009906301,1.73e-05,134.69,134.68,34.30088357]
[1719009907412,1.73e-05,134.69,134.68,54.64088357]
[1719009908091,1.73e-05,134.69,134.68,99.29088357]
[1719009910320,1.73e-05,134.69,134.68,99.20036357]
[1719009911695,1.73e-05,134.69,134.68,115.06636357]
[1719009912715,1.73e-05,134.69,134.68,99.20036357]
[1719009915922,15.9916,134.78,134.77,5.936]
[1719009916216,0.8648173,134.82,134.78,14.8385]
[1719009916522,0.8648173,134.82,134.81,28.2842]
[1719009916523,1.73e-05,134.82,134.81,28.2842]
[1719009916727,15.9916,134.89,134.87,5.9314]
[1719009916903,15.9916,134.89,134.82,14.8345]
[1719009917106,15.9916,134.89,134.85,5.9324]
[1719009917300,21.9226,134.89,134.82,14.8345]
[1719009917622,15.9916,134.89,134.85,5.9323]
[1719009917811,15.9916,134.89,134.85,5.9325]
[1719009918599,15.9916,134.89,134.84,5.9327]
[1719009921025,21.9223,134.89,134.82,14.8345]
[1719009921237,15.9916,134.89,134.86,5.932]
[1719009921516,15.9916,134.89,134.88,5.9311]
[1719009922309,6.3578,134.9,134.89,5.9307]
[1719009923028,15.6869,134.92,134.91,5.9298]
[1719009923213,16.5517173,134.96,134.88,67.0]
[1719009923416,16.5517173,134.96,134.95,5.9281]
[1719009923930,16.5517173,134.96,134.94,5.9284]
[1719009924237,16.5517173,134.96,134.95,5.9281]
[1719009924433,16.5517173,134.96,134.94,5.9285]
[1719009924766,0.8648173,134.96,134.95,5.9281]
[1719009926937,0.8648173,134.96,134.95,6.2681]
[1719009927252,0.8648173,134.96,134.95,28.6181]
[1719009927607,0.8648173,134.96,134.95,5.9281]
[1719009928308,0.8648173,134.96,134.94,5.9285]
[1719009928521,0.8648173,134.96,134.89,22.35]
[1719009928727,0.8648173,134.96,134.93,5.9289]
[1719009929010,0.8648173,134.96,134.92,5.9293]
[1719009929243,0.8648173,134.96,134.93,5.9289]
[1719009930035,0.8648173,134.96,134.94,5.9285]
[1719009930431,0.8648173,134.96,134.95,5.9281]
[1719009932633,0.8648173,134.96,134.95,20.9184]
[1719009932832,0.8648173,134.96,134.95,43.4384]
[1719009933445,0.8648173,134.96,134.93,5.9286]
[1719009933628,0.8648173,134.96,134.87,29.6571]
[1719009933815,0.8648173,134.96,134.89,22.35]
[1719009934013,0.8648173,134.96,134.94,5.9282]
[1719009934208,0.8648173,134.96,134.89,22.35]
[1719009934209,0.8648173,134.96,134.92,14.8232]
[1719009934429,0.8648173,134.96,134.94,5.9282]
[1719009935146,27.6768,134.95,134.9,5.9301]
[1719009936443,21.7487,134.95,134.91,5.9298]
[1719009936624,21.7487,134.95,134.93,5.9287]
[1719009936828,21.7487,134.95,134.89,14.8258]
[1719009937134,21.7487,134.95,134.92,5.9292]
[1719009937345,21.7487,134.95,134.9,14.8248]
[1719009937639,21.7487,134.95,134.92,5.9291]
[1719009938231,21.7487,134.95,134.91,5.9297]
[1719009938437,6.7925173,134.96,134.89,0.17]
[1719009938438,0.8648173,134.96,134.95,5.9281]
[1719009939739,12.5517173,134.98,134.97,5.9272]
[1719009939946,12.5517173,134.98,134.96,5.9276]
[1719009940245,18.4785173,134.98,134.93,5.9286]
[1719009940448,18.4785173,134.98,134.84,16.2315]
[1719009940449,12.5517173,134.98,134.89,12.551717]
[1719009940623,12.5517173,134.98,134.95,5.9278]
[1719009941837,12.5517173,134.98,134.96,5.9276]
[1719009942219,12.5517173,134.98,134.96,5.9272]
[1719009942423,12.5517173,134.98,134.97,5.9272]
[1719009942841,12.5517173,134.98,134.96,5.9275]
[1719009943433,18.4786173,134.98,134.93,5.9286]
[1719009944626,12.5517173,134.98,134.94,5.9285]
[1719009948465,12.5517173,134.98,134.95,5.928]
[1719009949266,12.5517173,134.98,134.94,5.9283]
[1719009949568,5.9279,134.96,134.88,14.8272]
[1719009949771,5.9279,134.96,134.91,5.9297]
[1719009952139,5.9282,134.95,134.88,14.8272]
[1719009952435,6.0658,134.94,134.9,5.9301]
[1719009955388,22.1289,134.93,134.88,5.9311]
[1719009956362,16.1996,134.93,134.89,5.9306]
[1719009956866,16.1996,134.93,134.9,5.9299]
[1719009957069,16.1996,134.93,134.91,5.9296]
[1719009957892,16.1996,134.93,134.92,5.9294]
[1719009958090,16.1996,134.93,134.91,5.9296]
[1719009958477,16.1996,134.93,134.9,5.93]
[1719009960984,16.1996,134.93,134.9,5.9301]
[1719009961162,22.1276,134.96,134.91,5.9298]
[1719009961363,16.1996,134.96,134.93,5.9289]
[1719009961778,16.1996,134.96,134.92,5.9292]
[1719009962194,22.1273,134.96,134.91,5.9296]
[1719009962491,5.9282,134.95,134.9,5.9302]
[1719009963074,16.1996,134.96,134.85,16.1996]
[1719009963384,5.9286,134.94,134.86,22.35]
[1719009963586,5.9282,134.95,134.9,5.93]
[1719009963885,16.1996,134.96,134.89,5.9306]
[1719009963886,5.9286,134.94,134.89,5.9306]
[1719009964690,16.1996,134.96,134.87,14.8281]
[1719009964691,5.9294,134.92,134.87,5.9312]
[1719009964896,5.9294,134.92,134.88,5.9311]
[1719009965987,5.9294,134.92,134.87,5.9314]
[1719009966191,29.6323,134.99,134.86,5.9318]
[1719009966192,6.6553,134.95,134.86,5.9318]
[1719009966372,5.93,134.91,134.86,5.9318]
[1719009966574,5.93,134.91,134.87,5.9315]
[1719009966779,5.9296,134.92,134.87,5.9315]
[1719009968699,5.9291,134.93,134.88,5.9311]
[1719009969283,5.9295,134.92,134.88,5.9311]
[1719009969585,21.9077,134.95,134.85,22.35]
[1719009969789,5.9286,134.94,134.89,5.9305]
[1719009970174,15.2524,134.95,134.93,5.9287]
[1719009970380,15.2524,134.95,134.92,5.9292]
[1719009970576,15.2524,134.95,134.86,28.7914]
[1719009970895,15.2524,134.95,134.91,5.9296]
[1719009973199,15.2524,134.95,134.89,22.35]
[1719009973791,15.2524,134.95,134.93,5.9286]
[1719009976083,15.2524,134.95,134.9,14.8257]
[1719009976084,15.2524,134.95,134.94,5.9285]
[1719009976388,21.9077,134.98,134.94,5.9285]
[1719009976777,0.16310376,134.99,134.93,22.35]
[1719009976986,0.16310376,134.99,134.9,90.5717]
[1719009976987,0.16310376,134.99,134.96,5.9275]
[1719009977195,0.16310376,134.99,134.9,45.9217]
[1719009977395,0.16310376,134.99,134.91,0.34]
[1719009977803,0.16310376,134.99,134.95,5.9279]
[1719009977977,0.16310376,134.99,134.91,14.8245]
[1719009978175,15.2524,134.98,134.92,5.9293]
[1719009978407,15.2524,134.98,134.91,5.9297]
[1719009978602,12.5831,134.96,134.91,5.9297]
[1719009980102,6.6553,134.96,134.92,5.9293]
[1719009980397,12.583,134.96,134.92,5.9293]
[1719009980575,12.583,134.96,134.91,5.9296]
[1719009980978,6.6553,134.96,134.92,5.9293]
[1719009982605,12.583,134.96,134.92,5.9293]
[1719009984208,6.6553,134.96,134.92,5.9293]
[1719009984809,6.6553,134.96,134.89,14.8267]
[1719009985022,12.5831,134.96,134.91,5.9296]
[1719009985317,12.5831,134.96,134.92,5.9293]
[1719009985318,6.6553,134.96,134.92,5.9293]
[1719009985501,12.583,134.96,134.92,5.9293]
[1719009985699,12.583,134.96,134.91,5.9296]
[1719009987626,5.9287,134.94,134.89,5.9305]
[1719009987822,5.9283,134.95,134.86,45.0629]
[1719009988012,12.5831,134.96,134.91,5.9298]
[1719009988697,15.2524,134.98,134.92,14.8225]
[1719009988897,15.2524,134.98,134.95,5.9278]
[1719009989215,15.2524,134.98,134.95,5.928]
[1719009989419,15.2524,134.98,134.93,14.8216]
[1719009989615,15.2524,134.98,134.96,5.9275]
[1719009990804,15.2524,134.98,134.95,5.9279]
[1719009992011,15.2524,134.98,134.94,5.9283]
[1719009992513,15.2524,134.98,134.91,14.8244]
[1719009992830,15.2524,134.98,134.94,5.9285]
[1719009993725,15.2524,134.98,134.95,5.928]
[1719009993929,15.2524,134.98,134.9,29.6506]
[1719009993930,15.2524,134.98,134.96,5.9274]
[1719009995327,0.16310376,134.99,134.97,5.9272]
[1719009995818,0.16310376,134.99,134.96,5.9274]
[1719009996817,0.16310376,134.99,134.94,14.8213]
[1719009996818,0.16310376,134.99,134.95,14.8192]
[1719009997023,0.16310376,134.99,134.98,5.9268]
[1719010000521,0.16310376,134.99,134.92,22.454]
[1719010000522,0.16310376,134.99,134.94,22.35]
[1719010000844,0.16310376,134.99,134.98,5.9268]
[1719010005721,0.16310376,134.99,134.94,14.8206]
[1719010005942,0.16310376,134.99,134.92,37.2774]
[1719010006154,0.16310376,134.99,134.97,5.9272]
[1719010006526,0.16310376,134.99,134.98,5.9268]
[1719010006717,0.16310376,134.99,134.97,5.927]
[1719010008055,0.16310376,134.99,134.95,5.9277]
[1719010009663,0.16310376,134.99,134.96,5.9276]
[1719010010736,0.16310376,134.99,134.9,14.8256]
[1719010010935,5.9268,134.98,134.93,5.9288]
[1719010012758,0.16310376,134.99,134.93,5.9286]
[1719010013250,5.9271,134.98,134.93,5.9286]
[1719010015062,0.16310376,134.99,134.9,52.0004]
[1719010015388,0.16310376,134.99,134.98,5.9268]
[1719010016579,0.16310376,134.99,134.97,5.927]
[1719010016967,0.16310376,134.99,134.96,5.9274]
[1719010017673,0.16310376,134.99,134.97,5.9272]
[1719010018060,0.16310376,134.99,134.96,5.9275]
[1719010019491,0.16310376,134.99,134.95,5.9279]
[1719010020868,6.08950376,134.99,134.94,5.9284]
[1719010021076,0.16310376,134.99,134.93,5.9288]
[1719010021885,5.9275,134.97,134.92,5.9293]
[1719010023473,5.927,134.98,134.93,5.9288]
[1719010023682,5.9272,134.97,134.93,5.9288]
[1719010023976,5.9272,134.97,134.92,5.9292]
[1719010026089,5.9276,134.96,134.92,5.9292]
[1719010026293,22.6434,134.96,134.88,7.449]
[1719010026589,5.9282,134.95,134.9,5.93]
[1719010026793,22.6434,134.96,134.87,14.8283]
[1719010026963,5.9283,134.95,134.9,5.93]
[1719010027161,28.5712,134.96,134.91,5.9298]
[1719010028673,5.9283,134.95,134.9,5.9301]
[1719010029167,22.6434,134.96,134.92,5.9292]
[1719010029567,28.5711,134.96,134.92,5.9292]
[1719010029774,5.9291,134.93,134.88,5.931]
[1719010029974,5.9287,134.94,134.89,5.9306]
[1719010031093,5.9282,134.95,134.9,5.9302]
[1719010031790,0.16310376,134.91,134.9,5.9302]
[1719010033591,0.16310376,134.91,134.89,5.9305]
[1719010033791,0.16310376,134.91,134.9,5.9303]
[1719010035984,0.16310376,134.91,134.9,34.7163]
[1719010036294,0.16310376,134.91,134.9,35.0563]
[1719010036672,0.16310376,134.91,134.9,55.0563]
[1719010036993,0.16310376,134.91,134.9,99.7063]
[1719010037184,3.76e-06,134.91,134.9,99.7063]
[1719010043097,3.76e-06,134.91,134.9,54.7163]
[1719010043479,3.76e-06,134.91,134.9,34.7163]
[1719010044197,3.76e-06,134.91,134.9,5.9303]
[1719010045583,15.048,134.95,134.9,5.9303]
[1719010045785,20.9763,134.95,134.9,5.9303]
[1719010046386,15.048,134.95,134.91,5.9294]
[1719010046893,15.048,134.95,134.92,5.9293]
[1719010047088,20.9763,134.95,134.88,14.827]
[1719010047800,20.9763,134.95,134.9,5.9299]
[1719010048729,15.048,134.95,134.91,5.9298]
[1719010049504,20.9761,134.95,134.91,5.9298]
[1719010049995,20.9761,134.95,134.9,5.9301]
[1719010050601,15.048,134.95,134.88,14.827]
[1719010050803,15.048,134.95,134.91,5.9297]
[1719010051006,15.048,134.95,134.92,5.9294]
[1719010051506,15.048,134.95,134.91,5.9296]
[1719010052088,15.048,134.95,134.92,5.9294]
[1719010052613,15.048,134.95,134.91,5.9296]
[1719010054007,15.048,134.95,134.88,37.117]
[1719010054008,15.048,134.95,134.88,22.29]
[1719010054405,15.048,134.95,134.91,5.9298]
[1719010054918,15.048,134.95,134.92,5.9293]
[1719010055207,12.4926,134.97,134.91,22.29]